Cogmind - Beta 14 @@@ ROGUE MODE // 2024.10.18 @ 22:15:34 Player: diglidot Result: Destroyed by G-47 Trooper with Particle Gun Performance ------------- Evolutions (2) 1000 Regions Visited (3) 600 Robots Destroyed (67) 335 Value Destroyed (1951) 1951 Prototype IDs (0) 0 Alien Tech Used (0) 0 Bonus (164) 164 TOTAL SCORE: 4050 Bonus ------- High Alert Combat Kills 164 Cogmind --------- Core Integrity 0/550 Matter 300/300 Energy 59/125 System Corruption 0% Temperature Cool (57) Movement Flying (120) Ox1 Location -8/Materials Parts ------- > --- POWER (3) -------- Light Ion Engine > --- PROPULSION (2) --- Xenon Bombardment Thruster > --- UTILITY (2) ------ Improved Signal Interpreter Actuator Array > --- WEAPON (4) ------- (None) > --- INVENTORY (5) ---- Reaction Control System Reaction Control System Improved Light Armor Plating Peak State ------------ > --- POWER ------------ Improved Ion Engine Improved Ion Engine Light Deuterium Engine > --- PROPULSION ------- Xenon Bombardment Thruster Xenon Bombardment Thruster > --- UTILITY ---------- Advanced Heat Sink Large Storage Unit > --- WEAPON ----------- EM Pulse Cannon Improved Light Cannon Improved Light Cannon Heavy Flail > --- INVENTORY -------- Improved Heat Sink Improved Heat Sink Improved Heat Sink Improved Heat Sink Large Storage Unit Advanced Visual Processing Unit Advanced Visual Processing Unit Advanced Visual Processing Unit Advanced Visual Processing Unit Improved Signal Interpreter Actuator Array Reaction Control System Reaction Control System Improved Light Armor Plating [Rating: 35] Favorites ----------- Power Ion Engine Engine Ion Engine Power Core Light Nuclear Core Propulsion Aluminum Leg Leg Aluminum Leg Hover Unit Airjet Flight Unit Xenon Bombardment Thruster Utility Large Storage Unit Device Advanced Heat Sink Storage Large Storage Unit Processor Signal Interpreter Protection Improved Light Armor Plating Weapon Small Laser Energy Gun Small Laser Energy Cannon Heavy Particle Cannon Ballistic Gun Assault Rifle Ballistic Cannon Improved Light Cannon Launcher Grenade Launcher Special Weapon Mining Laser Impact Weapon Heavy Flail Build | -11 -10 -9 -8 ------- Run | Yrd Mat Mat Mat Slots Evolved 4 | . . 2 2 Power 2 | . . . 2 Propulsion . | . . . . Utility . | . . . . Weapon 2 | . . 2 . Parts Attached 91 | 6 6 26 53 Power 20 | 1 1 3 15 Engine 16 | 1 1 3 11 Core 4 | . . . 4 Reactor . | . . . . Propulsion 19 | 2 . 5 12 Treads . | . . . . Leg 14 | 2 . 5 7 Wheel . | . . . . Hover 2 | . . . 2 Flight 3 | . . . 3 Utility 12 | 1 2 3 6 Device 6 | . . 2 4 Storage 2 | 1 1 . . Processor 3 | . 1 1 1 Hackware . | . . . . Protection 1 | . . . 1 Artifact . | . . . . Weapon 40 | 2 3 15 20 Energy Gun 17 | 2 1 11 3 Energy Cannon 3 | . . . 3 Ballistic Gun 7 | . 1 4 2 Ballistic Cannon 3 | . . . 3 Launcher 1 | . 1 . . Special Weapon 4 | . . . 4 Impact Weapon 5 | . . . 5 Slashing Weapon . | . . . . Piercing Weapon . | . . . . Special Melee Weapon . | . . . . Unidentified Prototypes . | . . . . Parts Lost 36 | . 1 7 28 Power 6 | . . . 6 Propulsion 6 | . . . 6 Utility 2 | . . . 2 Weapon 22 | . 1 7 14 Highest Loss Streak 11 | . 1 2 11 To Critical Strikes . | . . . . Average Slot Usage (%) 92 | . 98 98 87 Engine 12 | . 14 11 12 Core 4 | . . . 8 Leg 17 | . 28 22 11 Flight 1 | . . . 2 Device 5 | . . 3 7 Storage 11 | . 21 11 8 Processor 3 | . 5 7 . Energy Gun 18 | . 21 36 6 Energy Cannon 3 | . . . 6 Ballistic Gun 7 | . 4 5 9 Ballistic Cannon 3 | . . . 5 Impact Weapon 1 | . . . 3 Peak Build Rating 35 | 6 8 20 35 Average Rating 17 | 4 7 12 24 On Entrance 7 | . 6 8 14 Naked Turns . | . . . . Heaviest Build 57 | 11 33 38 57 Greatest Support 30 | 20 20 20 30 Greatest Overweight (x) 8 | 2 1 2 8 Average Overweight (x) 1 | . . 1 1 Largest Inventory Capacity 15 | 8 15 15 15 Average Capacity 14 | 7 14 15 14 Most Carried 15 | 5 12 13 15 Average Carried 10 | 2 7 9 12 Final Capacity 15 | 8 15 15 5 Final Carried 12 | 2 12 8 3 Class Distribution -------------------- 29% | Mutant 26% | Gunner 25% | Scavenger-Gunner 9% | Scavenger-Tank 8% | Tank Dominant Class ---------------- Mutant | -10/Materials Gunner | -9/Materials Scavenger-Gunner | -8/Materials Resources | -11 -10 -9 -8 ----------- Run | Yrd Mat Mat Mat Matter Collected 1594 | 187 158 304 945 Remotely . | . . . . Salvage Created 2461 | . 46 1133 1282 Parts 144 | . 5 62 77 Haulers Intercepted . | . . . . Recyclers Shooed 1 | . . 1 . Parts Field Recycled . | . . . . Retrieved Matter . | . . . . Parts Self-Destructed . | . . . . Prevented . | . . . . Kills | -11 -10 -9 -8 ------- Run | Yrd Mat Mat Mat Combat Hostiles Destroyed 47 | . 4 22 21 Guns 34 | . 2 21 11 Cannons 8 | . . . 8 AOE 4 | . 2 . 2 Classes Destroyed 11 | . 2 5 4 Worker 9 | . . 5 4 Recycler 1 | . . 1 . Mechanic 1 | . . . 1 Operator 1 | . . . 1 Watcher 8 | . . 3 5 Swarmer 11 | . 3 4 4 Grunt 22 | . 1 13 8 Brawler 1 | . . 1 . Sentry 10 | . . 4 6 Specialist 2 | . . . 2 Hunter 1 | . . . 1 Best Kill Streak 7 | . 3 7 4 Combat Bots Only 6 | . 3 6 3 Max Kills in Single Turn 2 | . 1 2 2 Gunslinging . | . . . . Exploded 2 | . 1 . 2 Melee . | . . . . Uniques/NPCs Destroyed . | . . . . Combat | -11 -10 -9 -8 -------- Run | Yrd Mat Mat Mat Hostile Shots Fired 382 | . 20 100 262 Missed 96 | . 8 22 66 Damage Taken 4320 | . 314 1123 2883 Core 960 | . 159 246 555 Absorbed by Shields . | . . . . Core Remaining (%) 58 | 100 36 38 . Volleys Fired 156 | . 11 61 84 Largest 4 | . 2 4 4 Hottest 200 | . 90 200 200 Shots Fired 467 | . 18 209 240 Gun 393 | . 15 209 169 Cannon 67 | . . . 67 Launcher 3 | . 3 . . Special 4 | . . . 4 Kinetic 121 | . . 20 101 Thermal 261 | . 15 130 116 Explosive 3 | . 3 . . Electromagnetic 82 | . . 59 23 Robot Hit Streak 10 | . 6 10 6 Robot Miss Streak 7 | . 2 6 7 Penetration Max . | . . . . Secondary Targets 2 | . . 2 . Max Gunslinging Chain 1 | . . 1 . Shots Hit Robots 247 | . 12 118 117 Core Hits 113 | . 9 47 57 Critical Kills . | . . . . Critical Parts Destroyed . | . . . . Critical Strikes 8 | . 2 4 2 Burn 5 | . 2 2 1 Blast 1 | . . . 1 Corrupt 2 | . . 2 . Melee Attacks 2 | . . . 2 Impact 2 | . . . 2 Slashing . | . . . . Piercing . | . . . . Sneak Attacks . | . . . . Combat Hostiles . | . . . . Follow-up Attacks . | . . . . Damage Inflicted 4244 | . 336 1872 2036 Guns 2854 | . 125 1624 1105 Cannons 721 | . . . 721 Explosions 527 | . 211 248 68 Melee 90 | . . . 90 Ramming 4 | . . . 4 Kinetic 798 | . . 118 680 Thermal 2326 | . 125 1114 1087 Explosive 211 | . 211 . . Electromagnetic 815 | . . 640 175 Impact 90 | . . . 90 Slashing . | . . . . Piercing . | . . . . Highest Corruption 2 | . 2 . . Average Corruption 2 | . 2 . . Corruption Purged . | . . . . Corruption Blocked . | . . . . Effects 4 | . 4 . . Message Errors 1 | . 1 . . Matter Fused 1 | . 1 . . Energy Discharges 1 | . 1 . . Alerts 1 | . 1 . . Overload Shots . | . . . . Overflow Damage 139 | . 38 101 . Projectiles . | . . . . Explosions 139 | . 38 101 . Melee . | . . . . Knockbacks 5 | . . . 5 Impact 2 | . . . 2 Kinetic 2 | . . . 2 Secondary 1 | . . . 1 Self-Inflicted Damage 289 | . 154 95 40 Shots 6 | . 3 2 1 Rammed . | . . . . Targets Rammed 2 | . . 1 1 Kicked 2 | . . 1 1 Crushed . | . . . . Highest Temperature 680 | . 172 650 680 Average Temperature 187 | . 86 201 182 Received Heat Transfer 1566 | . 30 438 1098 Effects 79 | . . 33 46 Shutdowns 24 | . . 7 17 Energy Bleed 8 | . . 6 2 Interference 17 | . . 6 11 Matter Decay 5 | . . 2 3 Short Circuit 5 | . . 4 1 Damage (minor) 4 | . . 2 2 Damage (major) 15 | . . 5 10 Damage (core) 1 | . . 1 . Siege Activations . | . . . . Robots Corrupted 1 | . . 1 . Combat Hostiles 1 | . . 1 . Parts Fried 6 | . . 6 . Impact Corruptions 1 | . . . 1 Robots Melted . | . . . . Combat Hostiles . | . . . . Parts Melted 7 | . 2 1 4 Heat Transferred 5044 | . 483 2513 2048 Parts Sabotaged . | . . . . Parts Stolen . | . . . . Parts Stripped . | . . . . Power Chain Reactions 3 | . . 2 1 Alert | -11 -10 -9 -8 ------- Run | Yrd Mat Mat Mat Peak Influence 562 | . 194 562 562 Initial 237 | . . . 237 Average 263 | . 77 182 380 Maximum Alert Level 2 | . . 2 2 Low Security (%) 37 | 100 100 61 . Level 1 36 | . . 21 57 Level 2 26 | . . 16 42 Level 3 . | . . . . Level 4 . | . . . . Level 5 . | . . . . High Security . | . . . . Max Security . | . . . . Squads Dispatched 8 | . 2 4 2 Investigation 1 | . . 1 . Extermination . | . . . . Reinforcement 7 | . 2 3 2 Assault . | . . . . Garrison . | . . . . Intercept . | . . . . Searches Triggered . | . . . . Construction Impeded . | . . . . Haulers Reinforced . | . . . . Active Scanning Responses . | . . . . Cargo Convoy Interrupts . | . . . . Stealth | -11 -10 -9 -8 --------- Run | Yrd Mat Mat Mat Distress Signals 5 | . 1 1 3 Communications Jammed . | . . . . Distress Signals . | . . . . Times Spotted 75 | . 5 31 39 Peak Tracking Total 7 | . 3 7 4 Tactical Retreats 8 | . . 3 5 Traps | -11 -10 -9 -8 ------- Run | Yrd Mat Mat Mat Traps Triggered 9 | . 2 1 6 Indirectly . | . . . . Trap Hack Attempts . | . . . . Triggered . | . . . . Disarmed . | . . . . Reprogrammed . | . . . . Reused . | . . . . Traps Extracted . | . . . . Installed . | . . . . Triggered . | . . . . Machines | -11 -10 -9 -8 ---------- Run | Yrd Mat Mat Mat Machines Disabled 8 | . 2 3 3 Max in Single Turn 2 | . 1 2 1 Machines Repaired . | . . . . Machines Dismantled . | . . . . Machines Sabotaged . | . . . . Overloaded Fab Kills . | . . . . Hacking | -11 -10 -9 -8 --------- Run | Yrd Mat Mat Mat Machines Accessed 10 | . 3 5 2 Terminals 9 | . 3 5 1 Fabricators . | . . . . Repair Stations . | . . . . Recycling Units 1 | . . . 1 Scanalyzers . | . . . . Garrison Access . | . . . . Total Hacks 31 | . 12 15 4 Successful 18 | . 7 9 2 Failed 13 | . 5 6 2 Catastrophic 1 | . . . 1 Database Lockouts . | . . . . Manual . | . . . . Terminals 29 | . 12 15 2 Fabricators . | . . . . Repair Stations . | . . . . Recycling Units 2 | . . . 2 Scanalyzers . | . . . . Garrison Access . | . . . . Terminal Hacks 17 | . 7 9 1 Record 10 | . 6 4 . Level Access Points 1 | . . 1 . Alert Level 2 | . . 1 1 Transport Status 1 | . . 1 . Hauler Manifests 1 | . 1 . . Zone Layout 2 | . . 2 . Fabricator Hacks . | . . . . Repair Station Hacks . | . . . . Recycling Unit Hacks 1 | . . . 1 Report Inventory 1 | . . . 1 Scanalyzer . | . . . . Garrison Access Hacks . | . . . . Unauthorized Hacks . | . . . . Terminals . | . . . . Fabricators . | . . . . Repair Stations . | . . . . Recycling Units . | . . . . Scanalyzers . | . . . . Garrison Access . | . . . . Data Cores Recovered . | . . . . Used . | . . . . Hacking Detections 6 | . 1 4 1 Full Trace Events 2 | . 1 1 . Feedback Events . | . . . . Feedback Blocked . | . . . . Robot Schematics Acquired . | . . . . Robots Built . | . . . . Authchips . | . . . . Time . | . . . . Total Robot Build Rating . | . . . . Part Schematics Acquired . | . . . . Parts Built . | . . . . Authchips . | . . . . Time . | . . . . Total Part Build Rating . | . . . . Parts Repaired . | . . . . Time . | . . . . Parts Recycled . | . . . . Recycled Matter . | . . . . Retrieved Matter . | . . . . Retrieved Components . | . . . . Parts Scanalyzed . | . . . . Part Schematics Acquired . | . . . . Parts Damaged . | . . . . Bothacking | -11 -10 -9 -8 ------------ Run | Yrd Mat Mat Mat Used RIF Installer . | . . . . Robots Hacked . | . . . . Non-combat . | . . . . Combat . | . . . . Robot Hacks Applied . | . . . . Relay Couplers Released . | . . . . Fabnet Peak Effective % . | . . . . Robots Rewired . | . . . . Allies Hacked . | . . . . Hacks Repelled . | . . . . Allies | -11 -10 -9 -8 -------- Run | Yrd Mat Mat Mat Total Allies . | . . . . Largest Group . | . . . . Highest-Rated Group . | . . . . Highest-Rated Ally . | . . . . Total Orders . | . . . . Ally Attacks . | . . . . Total Damage . | . . . . Kills . | . . . . Allies Corrupted . | . . . . Allies Melted . | . . . . Intel | -11 -10 -9 -8 ------- Run | Yrd Mat Mat Mat Robot Analysis Total . | . . . . Derelict Logs Recovered . | . . . . Drone Launches . | . . . . Drone Recoveries . | . . . . Exploration | -11 -10 -9 -8 ------------- Run | Yrd Mat Mat Mat Turns Passed 3886 | 58 644 1194 1990 Spaces Moved 1501 | 47 329 436 689 Core 16 | 16 . . . Treads . | . . . . Legs 1312 | 31 329 436 516 Wheels . | . . . . Hover 50 | . . . 50 Flight 123 | . . . 123 Fastest Speed 40 | 50 120 190 40 Average Speed 199 | 98 180 192 219 Slowest Speed 690 | 150 190 260 690 Overloaded Moves . | . . . . Propulsion Burnouts . | . . . . Robots Hopped . | . . . . Cave-ins Triggered . | . . . . Exploration Rate (%) 38 | 4 53 49 47 Regions Visited 3 Branch Regions . Pre-discovered Areas . | . . . . Known Exits Taken 2 | . 1 1 . Unknown Exits Taken 1 | 1 . . . Scrap Searched . | . . . . Spaces Dug . | . . . . Terrain Destroyed 91 | . 45 19 27 Melee . | . . . . Projectile 22 | . . . 22 AOE 69 | . 45 19 5 Terrain Rammed . | . . . . Walls Destroyed . | . . . . Machines Disabled . | . . . . Actions | -11 -10 -9 -8 --------- Run | Yrd Mat Mat Mat Total 2046 | 58 361 650 977 Wait 193 | . . 99 94 Move 1498 | 46 328 435 689 Hop . | . . . . Pick Up 71 | 6 14 17 34 Fast Attach 23 | 2 . . 21 Attach 32 | 4 2 10 16 Detach 1 | . . 1 . Swap 36 | . 4 16 16 Drop 32 | . 2 10 20 Fire 156 | . 11 61 84 Melee 2 | . . . 2 Ram . | . . . . Kick 2 | . . 1 1 Crush . | . . . . Escape Stasis . | . . . . Rewire . | . . . . Trap . | . . . . Miscellaneous . | . . . . Route ------- -11/Scrapyard -10/Materials (discovered 2 exits: *Mat x2) -9/Materials (discovered 5 exits: *Mat x3 / [*Min] / *Sto) -8/Materials History --------- Turn | Location | Event 5 | -11/Scrapyard | Discovered new exit (range 15) 59 | -11/Scrapyard | Entered Materials 200 | -10/Materials | Core integrity fell below 50% 266 | -10/Materials | Discovered new exit (range 9) 316 | -10/Materials | Build established: Mutant 696 | -10/Materials | Discovered new exit (range 5) 701 | -10/Materials | Identified exit to Materials 703 | -10/Materials | Entered another Materials area 703 | -9/Materials | Evolved 2 slots: Weapon x2 849 | -9/Materials | Discovered new exit (range 4) 855 | -9/Materials | Identified exit to Storage 991 | -9/Materials | Build established: Gunner 1102 | -9/Materials | Discovered new exit (range 14) 1499 | -9/Materials | Identified exit to Materials 1588 | -9/Materials | Discovered new exit (range 7) 1590 | -9/Materials | Core integrity fell below 50% 1843 | -9/Materials | Build established: Tank 1897 | -9/Materials | Entered another Materials area 1897 | -8/Materials | Evolved 2 slots: Power x2 2195 | -8/Materials | Build established: Scavenger-Tank 2547 | -8/Materials | Build established: Scavenger-Gunner 3101 | -8/Materials | Lost 8 parts (3p2n3w) 3652 | -8/Materials | Build established: Gunner 3790 | -8/Materials | Core integrity fell below 50% 3813 | -8/Materials | Core integrity fell below 20% 3842 | -8/Materials | Lost 11 parts (3p2n2u4w) 3887 | -8/Materials | Destroyed by G-47 Trooper with Particle Gun Last Messages --------------- G-47 Trooper knocked back. Imp. Ion Engine destroyed. Imp. Heat Sink destroyed. Imp. Light Cannon destroyed. Xenon Bombardment Thruster destroyed. Acquired 124 matter. Lrg. Storage Unit destroyed. Hvy. Flail destroyed. Acquired 10 matter. Acquired 2 matter. Acquired Lgt. Ion Engine. Acquired Mining Laser. Acquired 3 matter. Acquired 35 matter. Acquired 10 matter. U-05 Engineer builds a Door. Mining Laser destroyed. G-47 Trooper IFF system glitched. Mining Laser destroyed. U-05 Engineer builds a Wall. Map ----- +----------------------------------------------------+ | # """"" #????????????????????????????????? | | + """"" "" #????????????????????????????????? | | ^# """"" """#????????????????????????????????? | | ^# ! ! #????????????????????????????????? | | = " #????????????????????????????????? | | %!###############????????????????????????????????? | | [!##########?????????????????????????????????????? | | =!## #?????????????????????????????????????? | | #### #?????????????????????????????????????? | | ## [ """ #?????????????????????????????????????? | | " ## """ #???????????? """?????????????????????? | | ""## """ #???????????? """?????????????????????? | | ""## #????????????? ?????????????????????? | | ""## """ #????????????? ?????????????????????? | | " ## """ #?????????????= ?????????????????????? | | ""## """ #????????????? ?????????????????????? | | ""## #????????????? ?????????????????????? | | ""## ########??????#+#?????????????????????? | | " #####+##### #??????# #?????????????????????? | | #### #??????# #?????????????????????? | | + #??????# #?????????????????????? | | ###### #??????# ############???######## | | ?????### #### #??????# %+ #???# | | ???????# #??##% ##?????## k# #???# """ "" | | #####??# ###?# #########g%# #???# """ "" | | #"""#### #!#?# !u g @u +! #???# """ "" | | [####+##### g ## #???# | | = # = # g ^ ## ##### | | + # ## + ## ! | | " =[# # " ## ## ## | | """%# # "" ######+###### ######+## | | ""[*# # ^ " """ #???# ##### % + | | "" # # """ "T" #???# % # | | "" # + "" #???# # | | # # """ #???# + | | # # "" #???# # | | ##########^ """ ##??# # | | #####???????# " % ##### # | | ????????????# """% % % # | | ????????????# """ "T" !% | | ????????????# """ """ # | | ????????????# ############### | | ????????????######"T"#### #?????????????? | | ?????????????????#"""#??# """ ######????????? | | ?????????????????#####??# """ # ########## | | ????????????????????????# """ | | ????????????????????????# | | ????????????????????????# | | ????????????????????????####"Y"###### ########### | | ???????????????????????????#"""#?#######?????????? | +----------------------------------------------------+ Best States ------------- Heat Dissipation 50 Energy Generation 32 Energy Capacity 550 Matter Stores 300 Matter Capacity 300 Sight Range 16 Terrain Scan Density 10 Armor Coverage 150 Evasion (%) 62 Item Schematics ----------------- None Robot Schematics ------------------ None Fabricated ------------ Nothing Alien Tech Used ----------------- None Achievements -------------- Power Corrupts Challenges ------------ None Game ------ Seed FissionDynamicStripper Manual? 0 Play Time 00:41:44 Cumulative 3.0 hours Start 2024.10.18 @ 21:37:09 End 2024.10.18 @ 22:15:34 Sessions 1 Manual Loads 0 Difficulty Rogue Special Mode None Game No. 5 Rogue 5 Adventurer 0 Explorer 0 Win Type - Total 0 Types 0/0/0/0/0/0/0/0/0 Lore% 1 Gallery% 6 Achievement% 6 Wizard Run 0 Options --------- Layout 1 ASCII 0 Keyboard 0 Movement Mouse Keybinds 0 Fullscreen 1 Font 24/Smallcaps Map View 50x35 Zoom Use 0% Tactical HUD 0 Map Filters NONE Filters NONE Steam 1 RUN: 51203b04-02f9-4049-821a-50a493b8c59d